fUSD/lending_fUSD_20240105
["ID","MTS","AMOUNT","RATE_DAILY","PERIOD"]
[310311125,1704471103557,-500.0,0.00030958,2]
[310311126,1704471103567,-947.64,0.00030958,2]
[310311127,1704471103577,-500.0,0.00030958,2]
[310311128,1704471103586,-500.0,0.00030958,2]
[310311129,1704471103595,-644.36,0.00030958,2]
[310311130,1704471103604,-515.14370685,0.00030958,2]
[310311131,1704471103614,-662.68,0.00030958,2]
[310311132,1704471103623,-500.0,0.00030958,2]
[310311133,1704471103633,-500.0,0.00030958,2]
[310311134,1704471103642,-500.0,0.00030958,2]
[310311135,1704471103652,-500.0,0.00030958,2]
[310311136,1704471103662,-1000.0,0.00030958,2]
[310311137,1704471103672,-500.0,0.00030958,2]
[310311138,1704471103681,-500.0,0.00030958,2]
[310311139,1704471103691,-500.0,0.00030958,2]
[310311140,1704471103700,-500.0,0.00030958,2]
[310311141,1704471103709,-500.0,0.00030958,2]
[310311142,1704471103719,-500.0,0.00030958,2]
[310311143,1704471103728,-500.0,0.00030958,2]
[310311144,1704471103739,-500.0,0.00030958,2]
[310311145,1704471103748,-606.21,0.00030958,2]
[310311146,1704471103758,-500.0,0.00030958,2]
[310311147,1704471103768,-1236.18,0.00030958,2]
[310311148,1704471103780,-500.0,0.00030958,2]
[310311149,1704471103789,-500.0,0.00030958,2]
[310311150,1704471103797,-500.0,0.00030958,2]
[310311151,1704471103805,-500.0,0.00030958,2]
[310311152,1704471103816,-500.0,0.00030958,2]
[310311153,1704471103825,-500.0,0.00030958,2]
[310311154,1704471103835,-947.15,0.00030958,2]
[310311155,1704471103844,-500.0,0.00030958,2]
[310311156,1704471103855,-500.0,0.00030958,2]
[310311157,1704471103864,-610.11341543,0.00030958,2]
[310311158,1704471103873,-500.0,0.00030958,2]
[310311159,1704471103883,-500.0,0.00030958,2]
[310311160,1704471103892,-500.0,0.00030958,2]
[310311161,1704471103901,-500.0,0.00030958,2]
[310311162,1704471103910,-500.0,0.00030958,2]
[310311163,1704471103920,-500.0,0.00030958,2]
[310311164,1704471103929,-625.62,0.00030958,2]
[310311165,1704471103938,-500.59,0.00030958,2]
[310311166,1704471103948,-545.24,0.00030958,2]
[310311167,1704471103957,-500.0,0.00030958,2]
[310311168,1704471103967,-637.82,0.00030958,2]
[310311169,1704471103976,-530.66,0.00030958,2]
[310311170,1704471103987,-476.0272604,0.00030958,2]
[310311171,1704471103997,-500.0,0.00030958,2]
[310311172,1704471104006,-500.0,0.00030958,2]
[310311173,1704471104016,-527.01816508,0.00030958,2]
[310311174,1704471104027,-500.0,0.00030958,2]
[310311175,1704471104036,-500.0,0.00030958,2]
[310311176,1704471104046,-500.0,0.00030958,2]
[310311177,1704471104056,-500.0,0.00030958,2]
[310311178,1704471104066,-500.0,0.00030958,2]
[310311179,1704471104076,-800.13,0.00030958,2]
[310311180,1704471104085,-500.0,0.00030958,2]
[310311181,1704471104094,-188.17337092,0.00030958,2]
[310311182,1704471104104,-500.0,0.00030958,2]
[310311183,1704471104113,-500.0,0.00030958,2]
[310311184,1704471104123,-500.0,0.00030958,2]
[310311185,1704471104133,-500.0,0.00030958,2]
[310311186,1704471104142,-531.61248587,0.00030958,2]
[310311187,1704471104151,-500.0,0.00030958,2]
[310311188,1704471104161,-626.55,0.00030958,2]
[310311189,1704471104171,-500.0,0.00030958,2]
[310311190,1704471104181,-500.0,0.00030958,2]
[310311191,1704471104190,-1387.56,0.00030958,2]
[310311192,1704471104200,-500.0,0.00030958,2]
[310311193,1704471104209,-500.0,0.00030958,2]
[310311194,1704471104218,-500.0,0.00030958,2]
[310311195,1704471104227,-500.0,0.00030958,2]
[310311196,1704471104237,-1366.99,0.00030958,2]
[310311197,1704471104247,-198.4466447,0.00030958,2]
[310311198,1704471104257,-500.0,0.00030958,2]
[310311199,1704471104267,-797.63,0.00030958,2]
[310311200,1704471104277,-500.0,0.00030958,2]
[310311201,1704471104287,-500.0,0.00030958,2]
[310311202,1704471104293,-500.0,0.00030958,2]
[310311203,1704471104302,-500.0,0.00030958,2]
[310311204,1704471104311,-500.0,0.00030958,2]
[310311205,1704471104320,-500.0,0.00030958,2]
[310311206,1704471104330,-703.77,0.00030958,2]
[310311207,1704471104339,-500.0,0.00030958,2]
[310311208,1704471104349,-500.0,0.00030958,2]
[310311209,1704471104358,-581.02,0.00030958,2]
[310311210,1704471104367,-1360.29,0.00030958,2]
[310311211,1704471104377,-500.0,0.00030958,2]
[310311212,1704471104387,-500.0,0.00030958,2]
[310311213,1704471104397,-500.0,0.00030958,2]
[310311214,1704471104407,-500.0,0.00030958,2]
[310311215,1704471104417,-500.0,0.00030958,2]
[310311216,1704471104427,-531.42,0.00030958,2]
[310311217,1704471104437,-700.18,0.00030958,2]
[310311218,1704471104446,-500.0,0.00030958,2]
[310311219,1704471104457,-500.0,0.00030958,2]
[310311220,1704471104466,-500.0,0.00030958,2]
[310311221,1704471104474,-500.0,0.00030958,2]
[310311222,1704471104484,-500.0,0.00030958,2]
[310311223,1704471104493,-319.7504995,0.00030958,2]
[310311224,1704471104503,-500.0,0.00030958,2]
[310311225,1704471104512,-500.0,0.00030958,2]
[310311226,1704471104521,-1036.76,0.00030958,2]
[310311227,1704471104531,-813.88,0.00030958,2]
[310311228,1704471104540,-962.57,0.00030958,2]
[310311229,1704471104550,-500.0,0.00030958,2]
[310311230,1704471104559,-500.0,0.00030958,2]
[310311231,1704471104568,-1289.38,0.00030958,2]
[310311232,1704471104578,-500.0,0.00030958,2]
[310311233,1704471104587,-500.0,0.00030958,2]
[310311234,1704471104596,-500.0,0.00030958,2]
[310311235,1704471104605,-4950.03,0.00030958,2]
[310311236,1704471104615,-500.0,0.00030958,2]
[310311237,1704471104624,-500.0,0.00030958,2]
[310311238,1704471104634,-734.2,0.00030958,2]
[310311239,1704471104643,-500.0,0.00030958,2]
[310311240,1704471104652,-500.0,0.00030958,2]
[310311241,1704471104661,-500.0,0.00030958,2]
[310311242,1704471104670,-500.0,0.00030958,2]
[310311243,1704471104878,-500.0,0.00030958,2]
[310311244,1704471104888,-500.0,0.00030958,2]
[310311245,1704471104897,-500.0,0.00030958,2]
[310311246,1704471104907,-500.0,0.00030958,2]
[310311247,1704471104915,-500.0,0.00030958,2]
[310311248,1704471104925,-712.3,0.00030958,2]
[310311249,1704471104934,-573.47,0.00030958,2]
[310311250,1704471104944,-500.0,0.00030958,2]
[310311251,1704471104953,-834.43,0.00030958,2]
[310311252,1704471104962,-500.0,0.00030958,2]
[310311253,1704471104972,-500.0,0.00030958,2]
[310311254,1704471104981,-1459.15,0.00030958,2]
[310311255,1704471104991,-337.45280278,0.00030958,2]
[310311256,1704471105001,-753.46,0.00030958,2]
[310311257,1704471105011,-500.0,0.00030958,2]
[310311258,1704471105020,-500.0,0.00030958,2]
[310311259,1704471105030,-500.0,0.00030958,2]
[310311260,1704471105039,-500.0,0.00030958,2]
[310311261,1704471105049,-500.0,0.00030958,2]
[310311262,1704471105059,-1169.4,0.00030958,2]
[310311263,1704471105069,-564.11,0.00030958,2]
[310311264,1704471105079,-598.84,0.00030958,2]
[310311265,1704471105089,-500.0,0.00030958,2]
[310311266,1704471105098,-1096.24,0.00030958,2]
[310311267,1704471105108,-500.0,0.00030958,2]
[310311268,1704471105117,-500.0,0.00030958,2]
[310311269,1704471105127,-1425.41,0.00030958,2]
[310311270,1704471105140,-500.0,0.00030958,2]
[310311271,1704471105150,-6105.28,0.00030958,2]
[310311272,1704471105159,-2530.93,0.00030958,2]
[310311273,1704471105168,-500.0,0.00030958,2]
[310311274,1704471105178,-500.0,0.00030958,2]
[310311275,1704471105188,-500.0,0.00030958,2]
[310311276,1704471105198,-500.0,0.00030958,2]
[310311277,1704471105207,-500.0,0.00030958,2]
[310311278,1704471105216,-500.0,0.00030958,2]
[310311279,1704471105226,-574.64,0.00030958,2]
[310311280,1704471105236,-500.0,0.00030958,2]
[310311281,1704471105245,-500.0,0.00030958,2]
[310311282,1704471105255,-500.0,0.00030958,2]
[310311283,1704471105264,-820.35,0.00030958,2]
[310311284,1704471105274,-500.0,0.00030958,2]
[310311285,1704471105283,-190.51354101,0.00030958,2]
[310311286,1704471105293,-1820.15,0.00030958,2]
[310311287,1704471105302,-500.0,0.00030958,2]
[310311288,1704471105312,-500.0,0.00030958,2]
[310311289,1704471105321,-1454.88,0.00030958,2]
[310311290,1704471105331,-848.25,0.00030958,2]
[310311291,1704471105341,-500.0,0.00030958,2]
[310311292,1704471105350,-3529.52,0.00030958,2]
[310311293,1704471105360,-500.0,0.00030958,2]
[310311294,1704471105369,-1261.77,0.00030958,2]
[310311295,1704471105379,-500.0,0.00030958,2]
[310311296,1704471105389,-500.0,0.00030958,2]
[310311297,1704471105398,-500.0,0.00030958,2]
[310311298,1704471105408,-500.0,0.00030958,2]
[310311299,1704471105417,-500.0,0.00030958,2]
[310311300,1704471105427,-673.04,0.00030958,2]
[310311301,1704471105437,-522.36,0.00030958,2]
[310311302,1704471105446,-500.0,0.00030958,2]
[310311303,1704471105456,-500.0,0.00030958,2]
[310311304,1704471105465,-1207.05,0.00030958,2]
[310311305,1704471105475,-806.5,0.00030958,2]
[310311306,1704471105486,-543.14,0.00030958,2]
[310311307,1704471105496,-500.0,0.00030958,2]
[310311308,1704471105506,-2710.43,0.00030958,2]
[310311309,1704471105516,-500.0,0.00030958,2]
[310311310,1704471105526,-731.44,0.00030958,2]
[310311311,1704471105535,-500.0,0.00030958,2]
[310311312,1704471105545,-625.00082976,0.00030958,2]
[310311313,1704471105554,-500.0,0.00030958,2]
[310311314,1704471105564,-500.0,0.00030958,2]
[310311315,1704471105573,-550.0,0.00030958,2]
[310311316,1704471105583,-519.5,0.00030958,2]
[310311317,1704471105592,-2046.64,0.00030958,2]
[310311318,1704471105602,-762.26,0.00030958,2]
[310311319,1704471105611,-1317.65,0.00030958,2]
[310311320,1704471105621,-500.0,0.00030958,2]
[310311321,1704471105631,-620.31,0.00030958,2]
[310311322,1704471105642,-5333.49,0.00030958,2]
[310311323,1704471105651,-500.0,0.00030958,2]
[310311324,1704471105661,-500.0,0.00030958,2]
[310311325,1704471105671,-500.0,0.00030958,2]
[310311326,1704471105681,-978.21,0.00030958,2]
[310311327,1704471105691,-1254.61,0.00030958,2]
[310311328,1704471105701,-500.0,0.00030958,2]
[310311329,1704471105710,-500.0,0.00030958,2]
[310311330,1704471105720,-802.02,0.00030958,2]
[310311331,1704471105729,-1336.26,0.00030958,2]
[310311332,1704471105740,-537.87,0.00030958,2]
[310311333,1704471105749,-502.66314728,0.00030958,2]
[310311334,1704471105758,-500.0,0.00030958,2]
[310311335,1704471105772,-500.0,0.00030958,2]
[310311336,1704471105786,-500.0,0.00030958,2]
[310311337,1704471105795,-3771.03,0.00030958,2]
[310311338,1704471105806,-500.0,0.00030958,2]
[310311339,1704471105815,-500.0,0.00030958,2]
[310311340,1704471105825,-500.0,0.00030958,2]
[310311341,1704471105834,-525.81,0.00030958,2]
[310311342,1704471105844,-500.0,0.00030958,2]
[310311343,1704471105856,-500.0,0.00030958,2]
[310311344,1704471105866,-500.0,0.00030958,2]
[310311345,1704471105875,-500.0,0.00030958,2]
[310311346,1704471105885,-500.0,0.00030958,2]
[310311347,1704471105894,-500.0,0.00030958,2]
[310311348,1704471105904,-500.0,0.00030958,2]
[310311349,1704471105914,-776.01,0.00030958,2]
[310311350,1704471105924,-3060.91,0.00030958,2]
[310311351,1704471105934,-13727.19,0.00030958,2]
[310311352,1704471105944,-500.0,0.00030958,2]
[310311353,1704471105953,-500.0,0.00030958,2]
[310311354,1704471105963,-500.0,0.00030958,2]
[310311355,1704471105977,-1204.63,0.00030958,2]
[310311356,1704471105986,-528.79473348,0.00030958,2]
[310311357,1704471105996,-769.65,0.00030958,2]
[310311358,1704471106006,-500.0,0.00030958,2]
[310311359,1704471106016,-3709.47,0.00030958,2]
[310311360,1704471106026,-500.0,0.00030958,2]
[310311361,1704471106036,-537.11,0.00030958,2]
[310311362,1704471106047,-4626.56,0.00030958,2]
[310311363,1704471106057,-411.02486825,0.00030958,2]
[310311364,1704471106068,-342.74446364,0.00030958,2]
[310311365,1704471106077,-500.0,0.00030958,2]
[310311366,1704471106087,-310.80887096,0.00030958,2]
[310311367,1704471106098,-1733.54,0.00030958,2]
[310311368,1704471106110,-500.0,0.00030958,2]
[310311369,1704471106119,-3029.39,0.00030958,2]
[310311370,1704471106130,-9181.09,0.00030958,2]
[310311371,1704471106140,-5426.23,0.00030958,2]
[310311372,1704471106149,-5834.39,0.00030958,2]
[310311373,1704471106159,-740.27,0.00030958,2]
[310311374,1704471106170,-500.0,0.00030958,2]
[310311375,1704471106179,-500.0,0.00030958,2]
[310311376,1704471106189,-500.0,0.00030958,2]
[310311377,1704471106198,-500.0,0.00030958,2]
[310311378,1704471106207,-799.71,0.00030958,2]
[310311379,1704471106217,-500.0,0.00030958,2]
[310311380,1704471106226,-500.0,0.00030958,2]
[310311381,1704471106236,-4345.18,0.00030958,2]
[310311382,1704471106246,-725.16,0.00030958,2]
[310311383,1704471106256,-272.34655205,0.00030958,2]
[310311384,1704471106265,-500.0,0.00030958,2]
[310311385,1704471106274,-500.0,0.00030958,2]
[310311386,1704471106283,-500.0,0.00030958,2]
[310311387,1704471106292,-30937.37,0.00030958,2]
[310311388,1704471106302,-821.62,0.00030958,2]
[310311389,1704471106312,-500.0,0.00030958,2]
[310311390,1704471106321,-397.27017491,0.00030958,2]
[310311391,1704471106331,-500.0,0.00030958,2]
[310311392,1704471106340,-507.07103895,0.00030958,2]
[310311393,1704471106350,-1420.61,0.00030958,2]
[310311394,1704471106359,-500.0,0.00030958,2]
[310311395,1704471106369,-749.5,0.00030958,2]
[310311396,1704471106378,-675.77,0.00030958,2]
[310311397,1704471106387,-699.84,0.00030958,2]
[310311398,1704471106396,-500.0,0.00030958,2]
[310311399,1704471106405,-900.8,0.00030958,2]
[310311400,1704471106414,-500.0,0.00030958,2]
[310311401,1704471106424,-500.0,0.00030958,2]
[310311402,1704471106433,-500.0,0.00030958,2]
[310311403,1704471106443,-500.0,0.00030958,2]
[310311404,1704471106453,-500.0,0.00030958,2]
[310311405,1704471106462,-605.12,0.00030958,2]
[310311406,1704471106472,-809.12,0.00030958,2]
[310311407,1704471106482,-500.0,0.00030958,2]
[310311408,1704471106493,-1182.33,0.00030958,2]
[310311409,1704471106502,-500.0,0.00030958,2]
[310311410,1704471106511,-3777.28,0.00030958,2]
[310311411,1704471106521,-500.0,0.00030958,2]
[310311412,1704471106530,-1058.15,0.00030958,2]
[310311413,1704471106540,-500.0,0.00030958,2]
[310311414,1704471106549,-571.4,0.00030958,2]
[310311415,1704471106559,-500.0,0.00030958,2]
[310311416,1704471106569,-830.16,0.00030958,2]
[310311417,1704471106577,-2249.97,0.00030958,2]
[310311418,1704471106587,-500.0,0.00030958,2]
[310311419,1704471106597,-500.0,0.00030958,2]
[310311420,1704471106606,-500.0,0.00030958,2]
[310311421,1704471106616,-1921.66,0.00030958,2]
[310311422,1704471106625,-1078.96,0.00030958,2]
[310311423,1704471106635,-500.0,0.00030958,2]
[310311424,1704471106644,-2596.11,0.00030958,2]
[310311425,1704471106653,-1277.02,0.00030958,2]
[310311426,1704471106664,-500.0,0.00030958,2]
[310311427,1704471106674,-1916.84,0.00030958,2]
[310311428,1704471106683,-540.2265143,0.00030958,2]
[310311429,1704471106692,-652.62,0.00030958,2]
[310311430,1704471106701,-500.0,0.00030958,2]
[310311431,1704471106711,-915.92,0.00030958,2]
[310311432,1704471106720,-500.0,0.00030958,2]
[310311433,1704471106730,-500.0,0.00030958,2]
[310311434,1704471106740,-500.0,0.00030958,2]
[310311435,1704471106750,-500.0,0.00030958,2]
[310311436,1704471106760,-150.0,0.00030958,2]
[310311437,1704471106769,-582.86,0.00030958,2]
[310311438,1704471106779,-790.64,0.00030958,2]
[310311439,1704471106788,-500.0,0.00030958,2]
[310311440,1704471106797,-500.0,0.00030958,2]
[310311441,1704471106807,-500.0,0.00030958,2]
[310311442,1704471106816,-500.0,0.00030958,2]
[310311443,1704471106827,-3952.46,0.00030958,2]
[310311444,1704471106836,-4595.39,0.00030958,2]
[310311445,1704471106846,-500.0,0.00030958,2]
[310311446,1704471106856,-500.0,0.00030958,2]
[310311447,1704471106866,-500.0,0.00030958,2]
[310311448,1704471106875,-756.94,0.00030958,2]
[310311449,1704471106884,-500.0,0.00030958,2]
[310311450,1704471106893,-1252.88,0.00030958,2]
[310311451,1704471106903,-500.0,0.00030958,2]
[310311452,1704471106912,-717.12,0.00030958,2]
[310311453,1704471106922,-964.19,0.00030958,2]
[310311454,1704471106932,-1622.29,0.00030958,2]
[310311455,1704471106941,-500.0,0.00030958,2]
[310311456,1704471106951,-500.0,0.00030958,2]
[310311457,1704471106961,-2229.13,0.00030958,2]
[310311458,1704471106970,-629.9,0.00030958,2]
[310311459,1704471106980,-511.35,0.00030958,2]
[310311460,1704471106989,-500.0,0.00030958,2]
[310311461,1704471106998,-6081.11,0.00030958,2]
[310311462,1704471107008,-1254.57,0.00030958,2]
[310311463,1704471107017,-1984.28,0.00030958,2]
[310311464,1704471107027,-529.0,0.00030958,2]
[310311465,1704471107036,-500.0,0.00030958,2]
[310311466,1704471107045,-500.0,0.00030958,2]
[310311467,1704471107054,-730.24,0.00030958,2]
[310311468,1704471107065,-500.0,0.00030958,2]
[310311469,1704471107074,-839.46,0.00030958,2]
[310311470,1704471107084,-1375.91,0.00030958,2]
[310311471,1704471107093,-566.80337045,0.00030958,2]
[310311472,1704471107103,-500.0,0.00030958,2]
[310311473,1704471107112,-500.0,0.00030958,2]
[310311474,1704471107122,-527.61221984,0.00030958,2]
[310311475,1704471107131,-518.23510799,0.00030958,2]
[310311476,1704471107141,-500.0,0.00030958,2]
[310311477,1704471107151,-500.0,0.00030958,2]
[310311478,1704471107161,-1622.69,0.00030958,2]
[310311479,1704471107171,-11940.29,0.00030958,2]
[310311480,1704471107181,-500.0,0.00030958,2]
[310311481,1704471107191,-500.0,0.00030958,2]
[310311482,1704471107201,-5893.72,0.00030958,2]
[310311483,1704471107211,-713.7,0.00030958,2]
[310311484,1704471107221,-1045.96,0.00030958,2]
[310311485,1704471107231,-2605.01,0.00030958,2]
[310311486,1704471107240,-500.0,0.00030958,2]
[310311487,1704471107250,-500.0,0.00030958,2]
[310311488,1704471107258,-381.78,0.00030958,2]
[310311489,1704471107268,-500.0,0.00030958,2]
[310311490,1704471107277,-500.0,0.00030958,2]
[310311491,1704471107287,-500.0,0.00030958,2]
[310311492,1704471107297,-543.11,0.00030958,2]
[310311493,1704471107306,-500.0,0.00030958,2]
[310311494,1704471107315,-500.0,0.00030958,2]
[310311495,1704471107325,-608.68,0.00030958,2]
[310311496,1704471107334,-7863.2,0.00030958,2]
[310311497,1704471107344,-2294.09,0.00030958,2]
[310311498,1704471107354,-500.0,0.00030958,2]
[310311499,1704471107364,-500.0,0.00030958,2]
[310311500,1704471107373,-647.48,0.00030958,2]
[310311501,1704471107382,-500.0,0.00030958,2]
[310311502,1704471107392,-1192.53,0.00030958,2]
[310311503,1704471107402,-3601.71,0.00030958,2]
[310311504,1704471107412,-500.0,0.00030958,2]
[310311505,1704471107422,-1603.38,0.00030958,2]
[310311506,1704471107431,-500.0,0.00030958,2]
[310311507,1704471107441,-770.23,0.00030958,2]
[310311508,1704471107450,-500.0,0.00030958,2]
[310311509,1704471107459,-500.0,0.00030958,2]
[310311510,1704471107469,-618.49,0.00030958,2]
[310311511,1704471107479,-2938.06,0.00030958,2]
[310311512,1704471107489,-500.0,0.00030958,2]
[310311513,1704471107499,-500.0,0.00030958,2]
[310311514,1704471107508,-1744.78,0.00030958,2]
[310311515,1704471107518,-666.36,0.00030958,2]
[310311516,1704471107528,-500.0,0.00030958,2]
[310311517,1704471107537,-325.26951217,0.00030958,2]
[310311518,1704471107546,-500.0,0.00030958,2]
[310311519,1704471107556,-2064.43,0.00030958,2]
[310311520,1704471107566,-500.0,0.00030958,2]
[310311521,1704471107576,-5976.75,0.00030958,2]
[310311522,1704471107586,-500.0,0.00030958,2]
[310311523,1704471107595,-5218.54,0.00030958,2]
[310311524,1704471107606,-526.45,0.00030958,2]
[310311525,1704471107615,-650.01,0.00030958,2]
[310311526,1704471107625,-554.78,0.00030958,2]
[310311527,1704471107634,-770.2,0.00030958,2]
[310311528,1704471107643,-500.0,0.00030958,2]
[310311529,1704471107652,-1624.24,0.00030958,2]
[310311530,1704471107661,-500.0,0.00030958,2]
[310311531,1704471107671,-657.7,0.00030958,2]
[310311532,1704471107681,-500.0,0.00030958,2]
[310311533,1704471107690,-500.0,0.00030958,2]
[310311534,1704471107699,-899.11,0.00030958,2]
[310311535,1704471107709,-500.0,0.00030958,2]
[310311536,1704471107718,-2564.8,0.00030958,2]
[310311537,1704471107728,-912.23,0.00030958,2]
[310311538,1704471107738,-500.0,0.00030958,2]
[310311539,1704471107748,-701.65,0.00030958,2]
[310311540,1704471107757,-733.59,0.00030958,2]
[310311541,1704471107767,-1151.0,0.00030958,2]
[310311542,1704471107778,-500.0,0.00030958,2]
[310311543,1704471107787,-788.16,0.00030958,2]
[310311544,1704471107797,-548.83987233,0.00030958,2]
[310311545,1704471107806,-500.0,0.00030958,2]
[310311546,1704471107817,-1833.74,0.00030958,2]
[310311547,1704471107826,-1286.65,0.00030958,2]
[310311548,1704471107835,-1365.11,0.00030958,2]
[310311549,1704471107845,-1004.41,0.00030958,2]
[310311550,1704471107855,-500.0,0.00030958,2]
[310311551,1704471107865,-1188.06,0.00030958,2]
[310311552,1704471107875,-500.0,0.00030958,2]
[310311553,1704471107885,-500.0,0.00030958,2]
[310311554,1704471107894,-500.0,0.00030958,2]
[310311555,1704471107903,-500.0,0.00030958,2]
[310311556,1704471107913,-500.0,0.00030958,2]
[310311557,1704471107923,-889.44,0.00030958,2]
[310311558,1704471107933,-186.92750241,0.00030958,2]
[310311559,1704471107942,-718.53,0.00030958,2]
[310311560,1704471107951,-799.46,0.00030958,2]
[310311561,1704471107961,-1229.01,0.00030958,2]
[310311562,1704471107970,-2168.33,0.00030958,2]
[310311563,1704471107980,-500.0,0.00030958,2]
[310311564,1704471107991,-621.57891032,0.00030958,2]
[310311565,1704471108000,-500.0,0.00030958,2]
[310311566,1704471108010,-1007.17,0.00030958,2]
[310311567,1704471108019,-1440.65,0.00030958,2]
[310311568,1704471108031,-500.0,0.00030958,2]
[310311569,1704471108041,-500.0,0.00030958,2]
[310311570,1704471108051,-1492.25,0.00030958,2]
[310311571,1704471108062,-1310.28,0.00030958,2]
[310311572,1704471108073,-1033.01,0.00030958,2]
[310311573,1704471108082,-500.0,0.00030958,2]
[310311574,1704471108092,-500.0,0.00030958,2]
[310311575,1704471108101,-8762.76,0.00030958,2]
[310311576,1704471108111,-500.0,0.00030958,2]
[310311577,1704471108120,-500.0,0.00030958,2]
[310311578,1704471108130,-500.0,0.00030958,2]
[310311579,1704471108139,-1037.25,0.00030958,2]
[310311580,1704471108149,-721.62,0.00030958,2]
[310311581,1704471108160,-500.0,0.00030958,2]
[310311582,1704471108170,-1254.6,0.00030958,2]
[310311583,1704471108180,-1235.07,0.00030958,2]
[310311584,1704471108189,-500.0,0.00030958,2]
[310311585,1704471108198,-500.0,0.00030958,2]
[310311586,1704471108207,-1231.65,0.00030958,2]
[310311587,1704471108216,-1175.89,0.00030958,2]
[310311588,1704471108226,-500.0,0.00030958,2]
[310311589,1704471108237,-500.0,0.00030958,2]
[310311590,1704471108246,-500.0,0.00030958,2]
[310311591,1704471108256,-2988.81,0.00030958,2]
[310311592,1704471108265,-1078.8,0.00030958,2]
[310311593,1704471108274,-500.0,0.00030958,2]
[310311594,1704471108285,-8593.4,0.00030958,2]
[310311595,1704471108295,-858.78,0.00030958,2]
[310311596,1704471108304,-500.0,0.00030958,2]
[310311597,1704471108313,-1000.0,0.00030958,2]
[310311598,1704471108323,-500.0,0.00030958,2]
[310311599,1704471108331,-500.0,0.00030958,2]
[310311600,1704471108340,-500.0,0.00030958,2]
[310311601,1704471108350,-500.0,0.00030958,2]
[310311602,1704471108360,-500.0,0.00030958,2]
[310311603,1704471108370,-500.0,0.00030958,2]
[310311604,1704471108380,-500.0,0.00030958,2]
[310311605,1704471108390,-775.55,0.00030958,2]
[310311606,1704471108400,-508.85,0.00030958,2]
[310311607,1704471108410,-13181.47,0.00030958,2]
[310311608,1704471108421,-2255.28,0.00030958,2]
[310311609,1704471108431,-500.0,0.00030958,2]
[310311610,1704471108440,-1023.39,0.00030958,2]
[310311611,1704471108449,-1387.79,0.00030958,2]
[310311612,1704471108459,-500.0,0.00030958,2]
[310311613,1704471108470,-500.0,0.00030958,2]
[310311614,1704471108480,-500.0,0.00030958,2]
[310311615,1704471108493,-507.25,0.00030958,2]
[310311616,1704471108502,-615.53,0.00030958,2]
[310311617,1704471108512,-500.0,0.00030958,2]
[310311618,1704471108523,-2939.6,0.00030958,2]
[310311619,1704471108533,-500.0,0.00030958,2]
[310311620,1704471108543,-500.0,0.00030958,2]
[310311621,1704471108553,-500.0,0.00030958,2]
[310311622,1704471108563,-500.0,0.00030958,2]
[310311623,1704471108572,-875.24,0.00030958,2]
[310311624,1704471108582,-587.32857431,0.00030958,2]